fUST/lending_fUST_20260111
["ID","MTS","AMOUNT","RATE_DAILY","PERIOD"]
[401320011,1768133444108,-1000.0,0.00014247,2]
[401320012,1768133444117,-1000.0,0.00014247,2]
[401320013,1768133444127,-505.42705469,0.00014247,2]
[401320014,1768133444137,-500.0,0.00014247,2]
[401320015,1768133444146,-1000.0,0.00014247,2]
[401320016,1768133444155,-1000.0,0.00014247,2]
[401320017,1768133444249,-500.0,0.00014288,2]
[401320018,1768133444259,-179.07075974,0.00014288,2]
[401320019,1768133444269,-500.0,0.00014288,2]
[401320020,1768133444278,-500.0,0.00014368,2]
[401320021,1768133444287,-406.5913621,0.00014368,2]
[401320022,1768133444297,-1500.0,0.00014368,2]
[401320023,1768133444307,-1500.0,0.00014368,2]
[401320024,1768133444317,-1500.0,0.00014368,2]
[401320025,1768133444327,-1500.0,0.00014368,2]
[401320026,1768133444338,-793.78310386,0.00014368,2]
[401320027,1768133444348,-1500.0,0.00014368,2]
[401320028,1768133444357,-1500.0,0.00014368,2]
[401320029,1768133444366,-1512.80470062,0.00014368,2]
[401320030,1768133444375,-554.02767991,0.00014368,2]
[401320031,1768133444384,-1500.0,0.00014368,2]
[401320032,1768133444393,-323.03430659,0.00014368,2]
[401320033,1768133444405,-1500.0,0.00014368,2]
[401320034,1768133444415,-1500.0,0.00014368,2]
[401320035,1768133444425,-263.96834089,0.00014368,2]
[401320036,1768133444435,-1500.0,0.00014368,2]
[401320037,1768133444444,-1500.0,0.00014368,2]
[401320038,1768133444454,-1500.0,0.00014368,2]
[401320039,1768133444463,-1500.0,0.00014368,2]
[401320040,1768133444472,-500.80134157,0.00014368,2]
[401320041,1768133444482,-168.36851892,0.00014368,2]
[401320042,1768133444492,-1500.0,0.00014368,2]
[401320043,1768133444501,-1500.0,0.00014368,2]
[401320044,1768133444512,-651.39515074,0.00014368,2]
[401320045,1768133444522,-1500.0,0.00014368,2]
[401320046,1768133444531,-1500.0,0.00014368,2]
[401320047,1768133444541,-1500.0,0.00014368,2]
[401320048,1768133444550,-1500.0,0.00014368,2]
[401320049,1768133444565,-1002.78216863,0.00014368,2]
[401320050,1768133444575,-1500.0,0.00014368,2]
[401320051,1768133444584,-1500.0,0.00014368,2]
[401320052,1768133444593,-223.48736773,0.00014368,2]
[401320053,1768133444604,-500.0,0.00014425,2]
[401320054,1768133444613,-500.0,0.00014425,2]
[401320055,1768133444623,-1000.0,0.00014462,2]
[401320056,1768133444636,-492.0,0.00014462,2]
[401320057,1768133444645,-5000.0,0.0001451,2]
[401320058,1768133444654,-487.28484085,0.00014562,2]
[401320059,1768133444664,-263.97622948,0.00014562,2]
[401320060,1768133444673,-500.0,0.00014562,2]
[401320061,1768133444682,-264.95729538,0.00014562,2]
[401320062,1768133444692,-979.02672329,0.00014668,2]
[401320063,1768133444701,-500.0,0.00014699,2]
[401320064,1768133444710,-150629.941391,0.00014699,2]
[401320065,1768133444719,-211.79,0.000147,2]
[401320066,1768133444729,-340.17869521,0.00014702,2]
[401320067,1768133444738,-100000.0,0.00014736,2]
[401320068,1768133444748,-900.0,0.00014768,2]
[401320069,1768133444757,-661.95893033,0.00014795,2]
[401320070,1768133444767,-1500.0,0.00014795,2]
[401320071,1768133444777,-1500.0,0.00014795,2]
[401320072,1768133444787,-500.79965419,0.00014795,2]
[401320073,1768133444796,-1500.0,0.00014795,2]
[401320074,1768133444805,-657.07022264,0.00014795,2]
[401320075,1768133444815,-1514.12213244,0.00014795,2]
[401320076,1768133444824,-1500.0,0.00014795,2]
[401320077,1768133444833,-1500.0,0.00014795,2]
[401320078,1768133444843,-488.64589349,0.00014795,2]
[401320079,1768133444853,-1500.0,0.00014795,2]
[401320080,1768133444862,-1000.0,0.00014795,2]
[401320081,1768133444871,-1001.3782102,0.00014795,2]
[401320082,1768133444880,-1236.28209818,0.00014795,2]
[401320083,1768133444890,-501.33075681,0.00014795,2]
[401320084,1768133444899,-1174.14847626,0.00014795,2]
[401320085,1768133444909,-1589.88646751,0.00014795,2]
[401320086,1768133444918,-1500.0,0.00014795,2]
[401320087,1768133444927,-1500.0,0.00014795,2]
[401320088,1768133444936,-1500.0,0.00014795,2]
[401320089,1768133444946,-500.76011771,0.00014795,2]
[401320090,1768133444956,-602.53259662,0.00014795,2]
[401320091,1768133444966,-1516.76085072,0.00014795,2]
[401320092,1768133444976,-1500.0,0.00014795,2]
[401320093,1768133444985,-788.05151213,0.00014795,2]
[401320094,1768133444995,-1500.0,0.00014795,2]
[401320095,1768133445004,-503.75899236,0.00014795,2]
[401320096,1768133445014,-1500.0,0.00014795,2]
[401320097,1768133445023,-1482.84709438,0.00014795,2]
[401320098,1768133445033,-1499.24471264,0.00014795,2]
[401320099,1768133445043,-1500.0,0.00014795,2]
[401320100,1768133445052,-514.14829436,0.00014795,2]
[401320101,1768133445062,-1025.59078617,0.00014795,2]
[401320102,1768133445071,-1500.0,0.00014795,2]
[401320103,1768133445081,-1500.0,0.00014795,2]
[401320104,1768133445091,-304.84096496,0.00014795,2]
[401320105,1768133445101,-1500.0,0.00014795,2]
[401320106,1768133445111,-1500.0,0.00014795,2]
[401320108,1768133445121,-1500.0,0.00014795,2]
[401320109,1768133445130,-500.0,0.00014836,2]
[401320110,1768133445139,-2870.56440789,0.00014911,2]
[401320112,1768133445150,-2000.0,0.00014916,2]
[401320113,1768133445159,-2000.0,0.00014916,2]
[401320114,1768133445169,-1001.19360014,0.00014916,2]
[401320115,1768133445178,-2000.0,0.00014916,2]
[401320116,1768133445188,-2000.0,0.00014916,2]
[401320117,1768133445197,-1781.06836301,0.00014916,2]
[401320118,1768133445207,-2000.0,0.00014916,2]
[401320119,1768133445216,-2000.0,0.00014916,2]
[401320120,1768133445225,-2000.0,0.00014916,2]
[401320121,1768133445234,-500.8125859,0.00014916,2]
[401320122,1768133445244,-1465.81779273,0.00014916,2]
[401320123,1768133445253,-1191.81021696,0.00014916,2]
[401320124,1768133445263,-650.76965904,0.00014916,2]
[401320125,1768133445273,-2000.0,0.00014916,2]
[401320126,1768133445284,-2000.0,0.00014916,2]
[401320127,1768133445294,-2000.0,0.00014916,2]
[401320128,1768133445303,-874.83618263,0.00014916,2]
[401320129,1768133445314,-2000.0,0.00014916,2]
[401320130,1768133445325,-2000.0,0.00014916,2]
[401320131,1768133445335,-2000.0,0.00014916,2]
[401320132,1768133445345,-1002.33157316,0.00014916,2]
[401320133,1768133445354,-500.0,0.00014973,2]
[401320134,1768133445364,-1000.0,0.00015,2]
[401320135,1768133445374,-800.0,0.00015068,2]
[401320136,1768133445383,-500.0,0.0001511,2]
[401320137,1768133445392,-500.0,0.00015247,2]
[401320138,1768133445402,-211.79,0.000153,2]
[401320139,1768133445412,-1200.0,0.00015316,2]
[401320141,1768133445421,-500.0,0.00015342,2]
[401320142,1768133445431,-339.58703801,0.00015342,2]
[401320144,1768133445441,-2000.0,0.00015342,2]
[401320145,1768133445451,-2000.0,0.00015342,2]
[401320146,1768133445460,-1640.95571878,0.00015342,2]
[401320147,1768133445470,-2000.0,0.00015342,2]
[401320148,1768133445479,-1597.05305078,0.00015342,2]
[401320149,1768133445488,-2000.0,0.00015342,2]
[401320150,1768133445498,-1004.51727604,0.00015342,2]
[401320151,1768133445508,-1144.01857865,0.00015342,2]
[401320152,1768133445519,-2000.0,0.00015342,2]
[401320153,1768133445530,-304.72135436,0.00015342,2]
[401320154,1768133445539,-1143.18421046,0.00015342,2]
[401320155,1768133445549,-1501.01375621,0.00015342,2]
[401320156,1768133445562,-2000.0,0.00015342,2]
[401320157,1768133445572,-2000.0,0.00015342,2]
[401320158,1768133445582,-1003.80919542,0.00015342,2]
[401320159,1768133445591,-2000.0,0.00015342,2]
[401320160,1768133445600,-620.9785477,0.00015384,2]
[401320161,1768133445611,-1146.0,0.00015416,2]
[401320162,1768133445621,-2500.0,0.00015464,2]
[401320163,1768133445630,-2500.0,0.00015464,2]
[401320164,1768133445641,-1466.62413338,0.00015464,2]
[401320165,1768133445651,-1102.18109458,0.00015464,2]
[401320166,1768133445660,-2500.0,0.00015464,2]
[401320167,1768133445669,-2500.0,0.00015464,2]
[401320168,1768133445679,-2500.0,0.00015464,2]
[401320169,1768133445688,-2500.0,0.00015464,2]
[401320170,1768133445698,-2500.0,0.00015464,2]
[401320171,1768133445709,-2500.0,0.00015464,2]
[401320172,1768133445719,-2500.0,0.00015464,2]
[401320173,1768133445729,-2000.0,0.00015464,2]
[401320174,1768133445739,-2500.0,0.00015464,2]
[401320175,1768133445748,-211.79,0.000158,2]
[401320176,1768133445758,-1500.0,0.00015864,2]
[401320177,1768133445767,-555.48898116,0.0001589,2]
[401320178,1768133445777,-2500.0,0.0001589,2]
[401320179,1768133445786,-2500.0,0.0001589,2]
[401320180,1768133445795,-2500.0,0.0001589,2]
[401320181,1768133445805,-2500.0,0.0001589,2]
[401320182,1768133445815,-2500.0,0.0001589,2]
[401320183,1768133445824,-2134.65901332,0.0001589,2]
[401320184,1768133445834,-2500.0,0.0001589,2]
[401320185,1768133445844,-1000.0,0.00015908,2]
[401320186,1768133445853,-791.0,0.00015908,2]
[401320187,1768133445863,-1006.66545063,0.00016012,2]
[401320188,1768133445873,-3000.0,0.00016012,2]
[401320189,1768133445882,-3000.0,0.00016012,2]
[401320190,1768133445892,-3000.0,0.00016012,2]
[401320191,1768133445903,-3000.0,0.00016012,2]
[401320192,1768133445912,-3000.0,0.00016012,2]
[401320193,1768133445922,-2650.42231336,0.00016012,2]
[401320194,1768133445933,-3000.0,0.00016012,2]
[401320195,1768133445942,-1228.00390276,0.00016012,2]
[401320196,1768133445952,-3000.0,0.00016012,2]
[401320197,1768133445962,-1600.00734843,0.00016164,2]
[401320198,1768133445972,-211.79,0.000163,2]
[401320199,1768133445982,-1800.0,0.00016412,2]
[401320200,1768133445992,-500.0,0.00016438,2]
[401320201,1768133446001,-500.0,0.00016438,2]
[401320202,1768133446011,-481.92486594,0.00016438,2]
[401320203,1768133446021,-500.0,0.00016438,2]
[401320204,1768133446030,-500.0,0.00016438,2]
[401320205,1768133446040,-500.0,0.00016438,2]
[401320206,1768133446050,-500.0,0.00016438,2]
[401320208,1768133446061,-594.49843147,0.00016438,2]
[401320209,1768133446070,-3002.60955562,0.00016438,2]
[401320210,1768133446079,-1552.92932298,0.00016438,2]
[401320211,1768133446089,-3000.0,0.00016438,2]
[401320212,1768133446180,-3000.0,0.00016438,2]
[401320213,1768133446190,-3000.0,0.00016438,2]
[401320214,1768133446199,-3000.0,0.00016438,2]
[401320215,1768133446209,-260.15865923,0.00016438,2]
[401320217,1768133446218,-3500.0,0.0001656,2]
[401320219,1768133446227,-3500.0,0.0001656,2]
[401320220,1768133446237,-3500.0,0.0001656,2]
[401320221,1768133446246,-3500.0,0.0001656,2]
[401320222,1768133446257,-3500.0,0.0001656,2]
[401320223,1768133446267,-3500.0,0.0001656,2]
[401320225,1768133446277,-3500.0,0.0001656,2]
[401320227,1768133446285,-379.9398414,0.00016702,2]
[401320228,1768133446292,-20291.95582991,0.00016716,2]
[401320229,1768133446301,-20291.95582991,0.00016716,2]
[401320230,1768133446312,-211.79,0.000168,2]
[401320231,1768133446324,-2203.0,0.0001696,2]
[401320232,1768133446335,-2578.16970935,0.00016986,2]
[401320233,1768133446347,-500.0,0.00016986,2]
[401320234,1768133446357,-3500.0,0.00016986,2]
[401320235,1768133446367,-3500.0,0.00016986,2]
[401320236,1768133446378,-4000.0,0.00017108,2]
[401320237,1768133446387,-4000.0,0.00017108,2]
[401320238,1768133446397,-3000.0,0.00017108,2]
[401320239,1768133446407,-1962.04250286,0.00017108,2]
[401320240,1768133446418,-4000.0,0.00017108,2]
[401320241,1768133446428,-4000.0,0.00017108,2]
[401320242,1768133446438,-4000.0,0.00017108,2]
[401320243,1768133446448,-979.02672324,0.00017122,2]
[401320244,1768133446457,-211.79,0.000173,2]
[401320245,1768133446469,-5000.0,0.00017412,2]
[401320246,1768133446479,-1000.0,0.00017499,2]
[401320248,1768133446489,-1000.0,0.00017499,2]
[401320249,1768133446498,-2500.0,0.00017534,2]
[401320250,1768133446508,-4000.0,0.00017534,2]
[401320251,1768133446520,-4500.0,0.00017656,2]
[401320252,1768133446532,-4500.0,0.00017656,2]
[401320253,1768133446544,-3500.0,0.00017656,2]
[401320254,1768133446556,-878.46600243,0.00017656,2]
[401320255,1768133446568,-1000.0,0.00017656,2]
[401320256,1768133446578,-211.79,0.000178,2]
[401320257,1768133446588,-567.54835774,0.00018082,2]
[401320258,1768133446599,-1642.48470631,0.00018204,2]
[401320259,1768133446609,-2495.04726907,0.00018204,2]
[401320260,1768133446618,-211.79,0.000183,2]
[401320261,1768133446629,-494.3,0.00018619,2]
[401320262,1768133446638,-419.70098759,0.00018702,2]
[401320263,1768133446647,-5000.0,0.00018863,2]
[401320264,1768133446656,-211.79,0.000189,2]
[401320265,1768133446665,-303.10001603,0.000189,2]
[401320266,1768133446675,-303.10001603,0.00019089,2]
[401320267,1768133446684,-221.86,0.00019178,2]
[401320268,1768133446694,-506.7938,0.00019178,2]
[401320269,1768133446703,-200.0,0.00019178,2]
[401320270,1768133446712,-313.59,0.00019178,2]
[401320271,1768133446722,-500.0,0.00019178,2]
[401320272,1768133446732,-167.58,0.000192,2]
[401320273,1768133446741,-166.96,0.000192,2]
[401320274,1768133446750,-163.88,0.000192,2]
[401320275,1768133446761,-13367.01,0.000192,2]
[401320276,1768133446770,-1000.0,0.00019249,2]
[401320277,1768133446779,-1000.0,0.00019249,2]
[401320278,1768133446788,-579.0,0.00019249,2]
[401320279,1768133446797,-303.10001603,0.00019278,2]
[401320280,1768133446807,-2140.41,0.000193,2]
[401320281,1768133446818,-211.79,0.000194,2]
[401320282,1768133446829,-303.10001603,0.00019467,2]
[401320283,1768133446839,-979.02672324,0.00019576,2]
[401320284,1768133446848,-303.10001603,0.00019656,2]
[401320285,1768133446859,-454.65002405,0.00019845,4]
[401320286,1768133446868,-211.79,0.000199,2]
[401320287,1768133446878,-506.7938,0.0002,4]
[401320288,1768133446888,-151.97857558,0.0002,2]
[401320289,1768133446897,-454.65002405,0.00020034,4]
[401320290,1768133446907,-281.87,0.00020216,2]
[401320291,1768133446917,-454.65002405,0.00020223,4]
[401320292,1768133446927,-494.3,0.0002029,2]
[401320293,1768133446936,-211.79,0.000204,2]
[401320294,1768133446946,-506.7938,0.00020411,5]
[401320295,1768133446956,-454.65002405,0.00020412,4]
[401320296,1768133446965,-2398.013274,0.00020548,2]
[401320297,1768133446975,-454.65002405,0.00020601,4]
[401320298,1768133446984,-459.46213379,0.00020702,2]
[401320299,1768133446993,-20291.95582991,0.00020723,2]
[401320300,1768133447003,-151.0,0.000209,3]
[401320301,1768133447012,-211.79,0.000209,2]
[401320302,1768133447022,-151.0,0.000209,4]
[401320303,1768133447031,-2870.56440789,0.00020981,2]
[401320304,1768133447046,-3000.0,0.00021,2]
[401320305,1768133447062,-3000.0,0.0002101,2]
[401320306,1768133447076,-3000.0,0.0002102,2]
[401320307,1768133447088,-3000.0,0.0002103,2]
[401320308,1768133447103,-3000.0,0.0002104,2]
[401320309,1768133447117,-3000.0,0.0002105,2]
[401320310,1768133447131,-3000.0,0.0002106,2]
[401320311,1768133447145,-3000.0,0.0002107,2]
[401320312,1768133447158,-3000.0,0.0002108,2]
[401320313,1768133447174,-3000.0,0.0002109,2]
[401320314,1768133447187,-3000.0,0.000211,2]
[401320315,1768133447201,-3000.0,0.0002111,2]
[401320316,1768133447214,-3000.0,0.0002112,2]
[401320317,1768133447226,-3000.0,0.0002113,2]
[401320318,1768133447240,-3000.0,0.0002114,2]
[401320319,1768133447252,-3000.0,0.0002115,2]
[401320320,1768133447265,-5944.891896,0.0002116,2]
[401320321,1768133447276,-1000.0,0.00021174,10]
[401320322,1768133447289,-1000.0,0.00021174,10]
[401320323,1768133447301,-1000.0,0.00021174,10]
[401320324,1768133447314,-13367.01,0.000212,2]
[401320325,1768133447328,-211.79,0.000214,2]
[401320326,1768133447340,-211.79,0.000219,2]
[401320327,1768133447354,-152.90727816,0.00021918,2]
[401320328,1768133447368,-494.3,0.00021961,2]
[401320329,1768133447382,-979.02672324,0.0002203,2]
[401320330,1768133447392,-211.79,0.000224,2]
[401320331,1768133447402,-499.22327998,0.00022702,2]
[401320332,1768133447414,-211.79,0.00023,2]
[401320333,1768133447427,-1000.0,0.00023291,10]
[401320334,1768133447442,-1000.0,0.00023291,10]
[401320335,1768133447454,-1000.0,0.00023291,10]
[401320336,1768133447466,-715.0,0.00023291,10]
[401320337,1768133447480,-211.79,0.000235,2]
[401320338,1768133447496,-494.3,0.00023632,2]
[401320339,1768133447509,-211.79,0.00024,2]
[401320340,1768133447522,-979.02672324,0.00024484,2]
[401320341,1768133447536,-211.79,0.000245,2]
[401320342,1768133447547,-500.0,0.00024658,2]
[401320343,1768133447560,-538.98442617,0.00024702,2]
[401320344,1768133447573,-500.0,0.00024795,2]
[401320345,1768133447585,-2140.41,0.000248,14]
[401320346,1768133447596,-76526.0115688,0.000248,2]
[401320347,1768133447608,-500.0,0.00024932,2]
[401320348,1768133447620,-211.79,0.00025,2]
[401320349,1768133447636,-250.0,0.00025205,2]
[401320350,1768133447652,-257.77529652,0.0002526,14]
[401320351,1768133447665,-494.3,0.00025303,2]
[401320352,1768133447678,-211.79,0.000255,2]
[401320353,1768133447690,-1000.0,0.0002562,10]
[401320354,1768133447702,-1000.0,0.0002562,10]
[401320355,1768133447714,-1000.0,0.0002562,10]
[401320356,1768133447727,-350.0,0.00025753,2]
[401320357,1768133447740,-2000.51544348,0.0002587,2]
[401320358,1768133447751,-13367.01,0.000259,2]
[401320359,1768133447763,-211.79,0.00026,2]
[401320360,1768133447777,-450.0,0.00026301,2]
[401320361,1768133447789,-211.79,0.000265,2]
[401320362,1768133447801,-578.74557237,0.00026702,2]
[401320363,1768133447813,-550.0,0.00026849,2]
[401320364,1768133447825,-183.0,0.00026904,22]
[401320365,1768133447837,-979.02672324,0.00026937,2]
[401320366,1768133447850,-494.3,0.00026974,2]
[401320367,1768133447863,-2870.56440789,0.0002705,2]
[401320368,1768133447876,-211.79,0.000271,2]
[401320369,1768133447888,-181.17141011,0.00027119,2]
[401320370,1768133447903,-702.10519323,0.00027397,5]
[401320371,1768133447916,-300.0,0.00027397,2]
[401320372,1768133447928,-300.0,0.00027397,2]
[401320373,1768133447939,-300.0,0.00027397,2]
[401320374,1768133447950,-300.0,0.00027397,2]
[401320375,1768133447961,-234.89,0.00027435,2]
[401320376,1768133447972,-211.79,0.000276,2]
[401320377,1768133447984,-5000.0,0.00028037,2]
[401320378,1768133447996,-211.79,0.000281,2]
[401320379,1768133448007,-212.0,0.00028548,29]
[401320380,1768133448018,-211.79,0.000286,2]
[401320381,1768133448030,-494.3,0.00028645,3]
[401320382,1768133448043,-618.50671856,0.00028702,2]
[401320383,1768133448058,-155.5739919,0.0002889,5]
[401320384,1768133448070,-10000.0,0.00029,7]
[401320385,1768133448081,-151.0,0.00029,7]
[401320386,1768133448093,-240.800368,0.00029,7]
[401320387,1768133448106,-1057.65818,0.00029,7]
[401320388,1768133448118,-151.0,0.00029,7]
[401320389,1768133448130,-1057.65818,0.00029,7]
[401320390,1768133448255,-1057.65818,0.00029,7]
[401320391,1768133448271,-151.0,0.00029,7]
[401320392,1768133448281,-1057.65818,0.00029,7]
[401320393,1768133448291,-152.567384,0.00029,7]
[401320394,1768133448301,-151.0,0.00029,7]
[401320395,1768133448311,-151.0,0.00029,7]
[401320396,1768133448322,-151.0,0.00029,7]
[401320397,1768133448332,-151.0,0.00029,7]
[401320398,1768133448342,-8382.93313115,0.0002902,2]
[401320399,1768133448351,-211.79,0.000291,2]
[401320400,1768133448360,-151.0,0.00029178,7]
[401320401,1768133448370,-151.0,0.00029178,7]
[401320402,1768133448380,-979.02672324,0.00029391,2]
[401320403,1768133448389,-211.79,0.000296,2]
[401320404,1768133448399,-155.57399191,0.00029729,5]
[401320405,1768133448409,-211.79,0.000301,2]
[401320406,1768133448419,-300.0,0.00030137,5]
[401320407,1768133448429,-151.0,0.00030137,14]
[401320408,1768133448440,-151.292503,0.00030203,31]
[401320409,1768133448451,-5000.0,0.00030203,2]
[401320410,1768133448462,-168.723,0.00030219,25]
[401320411,1768133448472,-13367.01,0.000303,2]
[401320412,1768133448482,-151.0,0.000303,31]
[401320413,1768133448492,-301.393574,0.000303,31]
[401320414,1768133448502,-151.0,0.000303,31]
[401320415,1768133448511,-170.54126,0.000303,31]
[401320416,1768133448520,-164.871038,0.000303,31]
[401320417,1768133448530,-1390.654024,0.000303,31]
[401320418,1768133448541,-494.3,0.00030316,4]
[401320419,1768133448551,-155.57399191,0.00030649,10]
[401320420,1768133448562,-658.26786475,0.00030702,2]
[401320421,1768133448572,-163.0,0.0003074,42]
[401320422,1768133448582,-151.0,0.000308,13]
[401320423,1768133448592,-151.0,0.000308,10]
[401320424,1768133448601,-500.0,0.00031029,7]
[401320425,1768133448612,-155.5739919,0.00031647,10]
[401320426,1768133448622,-536.72987461,0.0003179,7]
[401320427,1768133448635,-979.02672324,0.00031845,2]
[401320428,1768133448644,-494.3,0.00031987,5]
[401320429,1768133448654,-355.0,0.0003226,2]
[401320430,1768133448663,-5000.0,0.0003237,2]
[401320431,1768133448674,-171.0,0.000324,120]
[401320432,1768133448683,-155.57399191,0.00032626,10]
[401320433,1768133448694,-698.02901095,0.00032702,2]
[401320434,1768133448703,-2140.41,0.000328,14]
[401320435,1768133448712,-999.0,0.00032876,120]
[401320436,1768133448722,-474.86,0.00032877,10]
[401320437,1768133448732,-450.0,0.00032877,5]
[401320438,1768133448742,-1002.20117456,0.00032913,15]
[401320439,1768133448751,-151.0,0.00032917,2]
[401320440,1768133448761,-151.0,0.00032917,2]
[401320441,1768133448770,-151.0,0.00032917,2]
[401320442,1768133448779,-151.0,0.00032917,2]
[401320443,1768133448789,-151.0,0.00032917,2]
[401320444,1768133448798,-151.0,0.00032917,2]
[401320445,1768133448807,-151.0,0.00032917,2]
[401320446,1768133448816,-151.0,0.00032917,2]
[401320447,1768133448825,-151.0,0.00032917,2]
[401320448,1768133448835,-151.0,0.00032917,2]
[401320449,1768133448846,-151.0,0.00032917,2]
[401320450,1768133448857,-151.0,0.00032917,2]
[401320451,1768133448867,-151.0,0.00032917,2]
[401320452,1768133448876,-151.0,0.00032917,2]
[401320453,1768133448886,-151.0,0.00032917,2]
[401320454,1768133448895,-151.0,0.00032917,2]
[401320455,1768133448905,-151.0,0.00032917,2]
[401320456,1768133448914,-151.0,0.00032917,2]
[401320457,1768133448924,-151.0,0.00032917,2]
[401320458,1768133448933,-151.0,0.00032917,2]
[401320459,1768133448943,-151.0,0.00032917,2]
[401320460,1768133448953,-151.0,0.00032917,2]
[401320461,1768133448962,-151.0,0.00032917,2]
[401320462,1768133448971,-151.0,0.00032917,2]
[401320463,1768133448981,-151.0,0.00032917,2]
[401320464,1768133448991,-151.0,0.00032917,2]
[401320465,1768133449001,-151.0,0.00032917,2]
[401320466,1768133449010,-151.0,0.00032917,2]
[401320467,1768133449019,-151.0,0.00032917,2]
[401320468,1768133449029,-151.0,0.00032917,2]
[401320469,1768133449039,-151.0,0.00032917,2]
[401320470,1768133449049,-151.0,0.00032917,2]
[401320471,1768133449058,-151.0,0.00032917,2]
[401320472,1768133449067,-151.0,0.00032917,2]
[401320473,1768133449077,-151.0,0.00032917,2]
[401320474,1768133449088,-151.0,0.00032917,2]
[401320475,1768133449098,-151.0,0.00032917,2]
[401320476,1768133449108,-151.0,0.00032917,2]
[401320477,1768133449119,-151.0,0.00032917,2]
[401320478,1768133449129,-151.0,0.00032917,2]
[401320479,1768133449139,-151.0,0.00032917,2]
[401320480,1768133449148,-156.587,0.00032917,2]
[401320481,1768133449158,-152.09143049,0.00032917,2]
[401320482,1768133449167,-175.0,0.00032932,57]
[401320483,1768133449177,-52532.5888165,0.00033,10]
[401320484,1768133449186,-588.0,0.0003303,2]
[401320485,1768133449195,-354.0,0.00033055,2]
[401320486,1768133449205,-2870.56440789,0.0003312,2]
[401320487,1768133449214,-355.0,0.00033214,7]
[401320488,1768133449223,-1045039.0068,0.0003322,30]
[401320489,1768133449233,-264.224,0.0003322,31]
[401320490,1768133449243,-264.224,0.0003322,31]
[401320491,1768133449253,-264.224,0.0003322,31]
[401320492,1768133449261,-264.224,0.0003322,31]
[401320493,1768133449271,-151.0,0.0003322,7]
[401320494,1768133449280,-151.0,0.0003322,7]
[401320495,1768133449290,-151.0,0.0003322,31]
[401320496,1768133449299,-151.0,0.0003322,31]
[401320497,1768133449308,-159.196638,0.0003322,31]
[401320498,1768133449318,-160.734397,0.0003322,31]
[401320499,1768133449327,-151.0,0.0003322,31]
[401320500,1768133449336,-151.0,0.0003322,31]
[401320501,1768133449345,-151.0,0.0003322,31]
[401320502,1768133449355,-1390.654024,0.0003322,31]
[401320503,1768133449364,-151.0,0.0003322,31]
[401320504,1768133449373,-1057.65818,0.0003322,31]
[401320505,1768133449383,-151.0,0.0003322,31]
[401320506,1768133449392,-1057.65818,0.0003322,31]
[401320507,1768133449402,-1057.65818,0.0003322,31]
[401320508,1768133449411,-160.161373,0.0003322,31]
[401320509,1768133449420,-1057.65818,0.0003322,31]
[401320510,1768133449430,-239.620179,0.0003322,31]
[401320511,1768133449441,-151.0,0.0003322,31]
[401320512,1768133449451,-151.0,0.0003322,31]
[401320513,1768133449460,-728.329358,0.0003322,31]
[401320514,1768133449470,-151.0,0.0003322,31]
[401320515,1768133449480,-728.329358,0.0003322,31]
[401320516,1768133449489,-225.859576,0.0003322,31]
[401320517,1768133449499,-728.329358,0.0003322,31]
[401320518,1768133449508,-728.329358,0.0003322,31]
[401320519,1768133449518,-151.0,0.0003322,31]
[401320520,1768133449527,-151.0,0.0003322,31]